[Event "Titled Tuesday Blitz April 11 Early 2023"]
[White "Rakhmatullaev, Almas"]
[Black "Hajiyev, Kanan"]
[WhiteFideId "14205793"]
[BlackFideId "13404148"]
[WhiteElo "2221"]
[BlackElo "2103"]
[Result "1/2-1/2"]
[Round "01"]
[TimeControl "180+2"]
[Date "2023.04.11"]
[WhiteClock "0:00:11"]
[BlackClock "0:00:26"]

1. e4 {[%clk 0:02:59]}  c6 {[%clk 0:02:55]} 2. Nf3 {[%clk 0:02:58]}  d5 {[%clk 0:02:56]} 3. d3 {[%clk 0:02:59]}  a6 {[%clk 0:02:56]} 4. Nbd2 {[%clk 0:02:56]}  Bg4 {[%clk 0:02:56]} 5. h3 {[%clk 0:02:55]}  Bh5 {[%clk 0:02:56]} 6. g3 {[%clk 0:02:50]}  e6 {[%clk 0:02:55]} 7. Bg2 {[%clk 0:02:51]}  Nf6 {[%clk 0:02:56]} 8. O-O {[%clk 0:02:51]}  Be7 {[%clk 0:02:56]} 9. Qe2 {[%clk 0:02:48]}  O-O {[%clk 0:02:54]} 10. Rd1 {[%clk 0:02:46]}  c5 {[%clk 0:02:51]} 11. c3 {[%clk 0:02:44]}  Nc6 {[%clk 0:02:36]} 12. Nf1 {[%clk 0:02:44]}  Qc7 {[%clk 0:02:29]} 13. Bf4 {[%clk 0:02:41]}  Qa5 {[%clk 0:02:11]} 14. g4 {[%clk 0:02:35]}  Bg6 {[%clk 0:02:08]} 15. Ng3 {[%clk 0:02:35]}  dxe4 {[%clk 0:02:03]} 16. dxe4 {[%clk 0:02:32]}  Rfd8 {[%clk 0:02:02]} 17. a3 {[%clk 0:02:30]}  Rxd1+ {[%clk 0:01:58]} 18. Rxd1 {[%clk 0:02:30]}  Rd8 {[%clk 0:01:58]} 19. Re1 {[%clk 0:02:30]}  Qb5 {[%clk 0:01:56]} 20. h4 {[%clk 0:01:43]}  Qxe2 {[%clk 0:01:49]} 21. Rxe2 {[%clk 0:01:44]}  h5 {[%clk 0:01:48]} 22. g5 {[%clk 0:01:43]}  Nd7 {[%clk 0:01:45]} 23. Nd2 {[%clk 0:01:37]}  Nde5 {[%clk 0:01:42]} 24. Bxe5 {[%clk 0:01:33]}  Nxe5 {[%clk 0:01:42]} 25. f4 {[%clk 0:01:34]}  Nd3 {[%clk 0:01:23]} 26. f5 {[%clk 0:01:34]}  Bd6 {[%clk 0:01:15]} 27. Ndf1 {[%clk 0:01:23]}  Bh7 {[%clk 0:00:36]} 28. Bf3 {[%clk 0:01:13]}  Nf4 {[%clk 0:00:29]} 29. Rd2 {[%clk 0:01:11]}  c4 {[%clk 0:00:25]} 30. Kh1 {[%clk 0:01:03]}  b5 {[%clk 0:00:15]} 31. a4 {[%clk 0:00:48]}  Bc7 {[%clk 0:00:12]} 32. Rxd8+ {[%clk 0:00:45]}  Bxd8 {[%clk 0:00:13]} 33. axb5 {[%clk 0:00:46]}  axb5 {[%clk 0:00:13]} 34. Ne3 {[%clk 0:00:41]}  Nd3 {[%clk 0:00:13]} 35. Bxh5 {[%clk 0:00:39]}  Nxb2 {[%clk 0:00:11]} 36. g6 {[%clk 0:00:39]}  fxg6 {[%clk 0:00:04]} 37. fxg6 {[%clk 0:00:40]}  Bxh4 {[%clk 0:00:04]} 38. gxh7+ {[%clk 0:00:39]}  Kxh7 {[%clk 0:00:05]} 39. Ne2 {[%clk 0:00:40]}  Nd3 {[%clk 0:00:04]} 40. Bf3 {[%clk 0:00:34]}  Bf6 {[%clk 0:00:04]} 41. Nd4 {[%clk 0:00:32]}  b4 {[%clk 0:00:04]} 42. Nxc4 {[%clk 0:00:28]}  bxc3 {[%clk 0:00:04]} 43. Nc2 {[%clk 0:00:28]}  Nc5 {[%clk 0:00:03]} 44. e5 {[%clk 0:00:28]}  Bg5 {[%clk 0:00:04]} 45. Kg2 {[%clk 0:00:28]}  Nb3 {[%clk 0:00:04]} 46. Kf2 {[%clk 0:00:26]}  Nd2 {[%clk 0:00:05]} 47. Be2 {[%clk 0:00:23]}  Nxc4 {[%clk 0:00:04]} 48. Bxc4 {[%clk 0:00:24]}  Bf4 {[%clk 0:00:05]} 49. Bxe6 {[%clk 0:00:20]}  Bxe5 {[%clk 0:00:06]} 50. Ke3 {[%clk 0:00:21]}  Kh6 {[%clk 0:00:06]} 51. Ke4 {[%clk 0:00:22]}  Bf6 {[%clk 0:00:07]} 52. Kf5 {[%clk 0:00:22]}  Kh5 {[%clk 0:00:08]} 53. Bd5 {[%clk 0:00:21]}  Kh4 {[%clk 0:00:08]} 54. Kf4 {[%clk 0:00:22]}  g5+ {[%clk 0:00:07]} 55. Kf5 {[%clk 0:00:22]}  Bh8 {[%clk 0:00:07]} 56. Ne3 {[%clk 0:00:22]}  Kg3 {[%clk 0:00:06]} 57. Kxg5 {[%clk 0:00:22]}  Kf2 {[%clk 0:00:07]} 58. Nc2 {[%clk 0:00:22]}  Ke2 {[%clk 0:00:07]} 59. Be4 {[%clk 0:00:23]}  Kd2 {[%clk 0:00:08]} 60. Kf4 {[%clk 0:00:24]}  Bg7 {[%clk 0:00:08]} 61. Kf3 {[%clk 0:00:24]}  Bh6 {[%clk 0:00:08]} 62. Kf2 {[%clk 0:00:24]}  Bg7 {[%clk 0:00:09]} 63. Kf3 {[%clk 0:00:24]}  Bh6 {[%clk 0:00:09]} 64. Nd4 {[%clk 0:00:24]}  Bg7 {[%clk 0:00:10]} 65. Nb3+ {[%clk 0:00:24]}  Ke1 {[%clk 0:00:10]} 66. Ke3 {[%clk 0:00:24]}  Bh6+ {[%clk 0:00:09]} 67. Kd3 {[%clk 0:00:24]}  Bd2 {[%clk 0:00:10]} 68. Bf3 {[%clk 0:00:23]}  Kf2 {[%clk 0:00:10]} 69. Bh5 {[%clk 0:00:23]}  Kg3 {[%clk 0:00:11]} 70. Nd4 {[%clk 0:00:23]}  Kf4 {[%clk 0:00:12]} 71. Ne2+ {[%clk 0:00:23]}  Ke5 {[%clk 0:00:12]} 72. Bf3 {[%clk 0:00:23]}  Kf5 {[%clk 0:00:12]} 73. Kc2 {[%clk 0:00:23]}  Ke5 {[%clk 0:00:13]} 74. Bc6 {[%clk 0:00:22]}  Kd6 {[%clk 0:00:13]} 75. Bb5 {[%clk 0:00:23]}  Ke5 {[%clk 0:00:14]} 76. Bd3 {[%clk 0:00:24]}  Kd5 {[%clk 0:00:13]} 77. Kb3 {[%clk 0:00:24]}  Ke6 {[%clk 0:00:14]} 78. Kc4 {[%clk 0:00:25]}  Ke5 {[%clk 0:00:14]} 79. Kc5 {[%clk 0:00:25]}  Be1 {[%clk 0:00:13]} 80. Bc2 {[%clk 0:00:24]}  Bd2 {[%clk 0:00:14]} 81. Kc4 {[%clk 0:00:22]}  Be1 {[%clk 0:00:13]} 82. Nd4 {[%clk 0:00:23]}  Bd2 {[%clk 0:00:14]} 83. Kd3 {[%clk 0:00:23]}  Be1 {[%clk 0:00:14]} 84. Nf3+ {[%clk 0:00:23]}  Kf4 {[%clk 0:00:12]} 85. Nxe1 {[%clk 0:00:24]}  Ke5 {[%clk 0:00:11]} 86. Kxc3 {[%clk 0:00:24]}  Kd5 {[%clk 0:00:12]} 87. Nf3 {[%clk 0:00:24]}  Kc5 {[%clk 0:00:12]} 88. Be4 {[%clk 0:00:24]}  Kd6 {[%clk 0:00:12]} 89. Kd4 {[%clk 0:00:25]}  Ke6 {[%clk 0:00:13]} 90. Bd5+ {[%clk 0:00:25]}  Kd6 {[%clk 0:00:13]} 91. Ke4 {[%clk 0:00:26]}  Kc5 {[%clk 0:00:13]} 92. Ke5 {[%clk 0:00:27]}  Kb4 {[%clk 0:00:14]} 93. Kd4 {[%clk 0:00:27]}  Kb5 {[%clk 0:00:14]} 94. Ne5 {[%clk 0:00:28]}  Kb4 {[%clk 0:00:14]} 95. Bc4 {[%clk 0:00:26]}  Ka3 {[%clk 0:00:13]} 96. Kc3 {[%clk 0:00:24]}  Ka4 {[%clk 0:00:13]} 97. Nd7 {[%clk 0:00:23]}  Ka3 {[%clk 0:00:13]} 98. Nb8 {[%clk 0:00:17]}  Ka4 {[%clk 0:00:13]} 99. Na6 {[%clk 0:00:17]}  Ka3 {[%clk 0:00:14]} 100. Nb4 {[%clk 0:00:17]}  Ka4 {[%clk 0:00:14]} 101. Nc2 {[%clk 0:00:18]}  Ka5 {[%clk 0:00:14]} 102. Kb3 {[%clk 0:00:19]}  Kb6 {[%clk 0:00:14]} 103. Kb4 {[%clk 0:00:20]}  Kc6 {[%clk 0:00:15]} 104. Ne3 {[%clk 0:00:19]}  Kd6 {[%clk 0:00:16]} 105. Bd5 {[%clk 0:00:20]}  Ke5 {[%clk 0:00:17]} 106. Kc4 {[%clk 0:00:21]}  Kf4 {[%clk 0:00:17]} 107. Kd4 {[%clk 0:00:22]}  Kg5 {[%clk 0:00:16]} 108. Ke4 {[%clk 0:00:22]}  Kf6 {[%clk 0:00:17]} 109. Kf4 {[%clk 0:00:23]}  Ke7 {[%clk 0:00:17]} 110. Nf5+ {[%clk 0:00:24]}  Kd7 {[%clk 0:00:17]} 111. Ke5 {[%clk 0:00:25]}  Kc7 {[%clk 0:00:17]} 112. Nd4 {[%clk 0:00:25]}  Kb6 {[%clk 0:00:18]} 113. Kd6 {[%clk 0:00:26]}  Ka5 {[%clk 0:00:19]} 114. Kc5 {[%clk 0:00:26]}  Ka4 {[%clk 0:00:19]} 115. Nc2 {[%clk 0:00:27]}  Ka5 {[%clk 0:00:19]} 116. Bb3 {[%clk 0:00:27]}  Ka6 {[%clk 0:00:19]} 117. Nb4+ {[%clk 0:00:25]}  Ka5 {[%clk 0:00:20]} 118. Nc6+ {[%clk 0:00:20]}  Ka6 {[%clk 0:00:21]} 119. Bc4+ {[%clk 0:00:18]}  Kb7 {[%clk 0:00:22]} 120. Kd6 {[%clk 0:00:18]}  Kb6 {[%clk 0:00:22]} 121. Nd4 {[%clk 0:00:19]}  Ka5 {[%clk 0:00:23]} 122. Kc5 {[%clk 0:00:19]}  Ka4 {[%clk 0:00:23]} 123. Nc2 {[%clk 0:00:20]}  Ka5 {[%clk 0:00:24]} 124. Bb3 {[%clk 0:00:20]}  Ka6 {[%clk 0:00:24]} 125. Na3 {[%clk 0:00:19]}  Ka5 {[%clk 0:00:25]} 126. Nc4+ {[%clk 0:00:20]}  Ka6 {[%clk 0:00:25]} 127. Ba4 {[%clk 0:00:21]}  Kb7 {[%clk 0:00:25]} 128. Bc6+ {[%clk 0:00:21]}  Kc7 {[%clk 0:00:26]} 129. Ne5 {[%clk 0:00:20]}  Kc8 {[%clk 0:00:27]} 130. Kd6 {[%clk 0:00:18]}  Kd8 {[%clk 0:00:27]} 131. Nf7+ {[%clk 0:00:17]}  Kc8 {[%clk 0:00:27]} 132. Kc5 {[%clk 0:00:15]}  Kc7 {[%clk 0:00:28]} 133. Bb5 {[%clk 0:00:15]}  Kb7 {[%clk 0:00:25]} 134. Ne5 {[%clk 0:00:10]}  Kc7 {[%clk 0:00:26]} 135. Bd7 {[%clk 0:00:10]}  Kd8 {[%clk 0:00:26]} 136. Kd5 {[%clk 0:00:11]} 1/2-1/2


[Site "https://www.chess.com"]

[Event "Titled Tuesday Blitz April 11 Early 2023"]
[White "Turzo, Attila"]
[Black "Zhigalko, Sergei"]
[WhiteFideId "704954"]
[BlackFideId "13502956"]
[WhiteElo "2503"]
[BlackElo "2626"]
[Result "0-1"]
[Round "01"]
[TimeControl "180+2"]
[Date "2023.04.11"]
[WhiteClock "0:00:01"]
[BlackClock "0:00:05"]

1. e4 {[%clk 0:02:57]}  c5 {[%clk 0:02:59]} 2. Nc3 {[%clk 0:02:41]}  Nc6 {[%clk 0:02:59]} 3. f4 {[%clk 0:02:40]}  g6 {[%clk 0:02:59]} 4. Nf3 {[%clk 0:02:40]}  Bg7 {[%clk 0:02:59]} 5. Bc4 {[%clk 0:02:38]}  e6 {[%clk 0:03:00]} 6. O-O {[%clk 0:02:32]}  Nge7 {[%clk 0:03:00]} 7. d3 {[%clk 0:02:28]}  d5 {[%clk 0:03:00]} 8. Bb3 {[%clk 0:02:28]}  O-O {[%clk 0:02:59]} 9. Kh1 {[%clk 0:02:28]}  Nd4 {[%clk 0:02:49]} 10. Nxd4 {[%clk 0:02:20]}  cxd4 {[%clk 0:02:50]} 11. Ne2 {[%clk 0:02:20]}  a5 {[%clk 0:02:43]} 12. a4 {[%clk 0:02:16]}  dxe4 {[%clk 0:02:36]} 13. dxe4 {[%clk 0:02:16]}  b6 {[%clk 0:02:37]} 14. Bc4 {[%clk 0:02:12]}  Bb7 {[%clk 0:02:36]} 15. Bd3 {[%clk 0:02:01]}  f5 {[%clk 0:02:35]} 16. Ng3 {[%clk 0:01:52]}  Qc7 {[%clk 0:02:30]} 17. Qe2 {[%clk 0:01:51]}  Kh8 {[%clk 0:02:30]} 18. Bd2 {[%clk 0:01:50]}  Rac8 {[%clk 0:02:22]} 19. Rae1 {[%clk 0:01:47]}  Nc6 {[%clk 0:02:22]} 20. b3 {[%clk 0:01:36]}  Nb4 {[%clk 0:02:13]} 21. Bxb4 {[%clk 0:01:34]}  axb4 {[%clk 0:02:14]} 22. exf5 {[%clk 0:01:10]}  exf5 {[%clk 0:02:12]} 23. Qf2 {[%clk 0:00:57]}  Rfe8 {[%clk 0:02:02]} 24. Rxe8+ {[%clk 0:00:50]}  Rxe8 {[%clk 0:02:03]} 25. Re1 {[%clk 0:00:51]}  Rc8 {[%clk 0:01:43]} 26. Kg1 {[%clk 0:00:44]}  Bd5 {[%clk 0:01:39]} 27. Nf1 {[%clk 0:00:42]}  Rd8 {[%clk 0:00:46]} 28. Nd2 {[%clk 0:00:39]}  Bh6 {[%clk 0:00:45]} 29. g3 {[%clk 0:00:34]}  Ba8 {[%clk 0:00:36]} 30. Nf3 {[%clk 0:00:25]}  Qc6 {[%clk 0:00:34]} 31. Kg2 {[%clk 0:00:24]}  Bg7 {[%clk 0:00:26]} 32. Re2 {[%clk 0:00:24]}  h6 {[%clk 0:00:25]} 33. h4 {[%clk 0:00:23]}  Qd5 {[%clk 0:00:12]} 34. Re7 {[%clk 0:00:21]}  Bf6 {[%clk 0:00:09]} 35. Re2 {[%clk 0:00:19]}  g5 {[%clk 0:00:07]} 36. hxg5 {[%clk 0:00:19]}  hxg5 {[%clk 0:00:08]} 37. fxg5 {[%clk 0:00:17]}  Bxg5 {[%clk 0:00:09]} 38. Re1 {[%clk 0:00:16]}  Kg7 {[%clk 0:00:07]} 39. Qe2 {[%clk 0:00:13]}  Re8 {[%clk 0:00:05]} 40. Qxe8 {[%clk 0:00:01]}  Qxf3+ {[%clk 0:00:05]} 0-1


[Site "https://www.chess.com"]

[Event "Titled Tuesday Blitz April 11 Early 2023"]
[White "Mammadzada, Gunay"]
[Black "Samadov, Read"]
[WhiteFideId "13403729"]
[BlackFideId "13417444"]
[WhiteElo "2396"]
[BlackElo "2355"]
[Result "0-1"]
[Round "01"]
[TimeControl "180+2"]
[Date "2023.04.11"]
[WhiteClock "0:00:03"]
[BlackClock "0:00:38"]

1. e4 {[%clk 0:02:50]}  c5 {[%clk 0:02:59]} 2. Nf3 {[%clk 0:02:50]}  d6 {[%clk 0:02:59]} 3. d4 {[%clk 0:02:50]}  cxd4 {[%clk 0:03:00]} 4. Nxd4 {[%clk 0:02:51]}  Nf6 {[%clk 0:03:00]} 5. Nc3 {[%clk 0:02:50]}  a6 {[%clk 0:03:01]} 6. Be3 {[%clk 0:02:49]}  e5 {[%clk 0:03:01]} 7. Nb3 {[%clk 0:02:47]}  Be6 {[%clk 0:03:00]} 8. Qd2 {[%clk 0:02:47]}  Nbd7 {[%clk 0:02:58]} 9. O-O-O {[%clk 0:02:46]}  Be7 {[%clk 0:02:55]} 10. h3 {[%clk 0:02:44]}  b5 {[%clk 0:02:52]} 11. g4 {[%clk 0:02:41]}  h6 {[%clk 0:02:52]} 12. Kb1 {[%clk 0:02:41]}  Rc8 {[%clk 0:02:48]} 13. f4 {[%clk 0:02:38]}  exf4 {[%clk 0:02:46]} 14. Bxf4 {[%clk 0:02:38]}  Ne5 {[%clk 0:02:43]} 15. a3 {[%clk 0:01:46]}  O-O {[%clk 0:02:37]} 16. Nd4 {[%clk 0:01:38]}  Qb6 {[%clk 0:02:19]} 17. Nf5 {[%clk 0:01:33]}  Bxf5 {[%clk 0:02:10]} 18. gxf5 {[%clk 0:00:34]}  Kh7 {[%clk 0:02:08]} 19. Bd3 {[%clk 0:00:17]}  b4 {[%clk 0:01:50]} 20. axb4 {[%clk 0:00:15]}  Qxb4 {[%clk 0:01:48]} 21. Rhg1 {[%clk 0:00:15]}  Nf3 {[%clk 0:01:36]} 22. Qg2 {[%clk 0:00:11]}  Nxg1 {[%clk 0:01:32]} 23. Rxg1 {[%clk 0:00:12]}  Rg8 {[%clk 0:01:20]} 24. Bd2 {[%clk 0:00:12]}  Qb6 {[%clk 0:01:06]} 25. Qg3 {[%clk 0:00:03]}  Nh5 {[%clk 0:00:54]} 26. Qg2 {[%clk 0:00:03]}  Bf6 {[%clk 0:00:51]} 27. Nd1 {[%clk 0:00:02]}  Be5 {[%clk 0:00:46]} 28. c3 {[%clk 0:00:02]}  a5 {[%clk 0:00:42]} 29. Bc1 {[%clk 0:00:02]}  a4 {[%clk 0:00:41]} 30. Rf1 {[%clk 0:00:02]}  a3 {[%clk 0:00:40]} 31. Qf3 {[%clk 0:00:03]}  Nf6 {[%clk 0:00:39]} 32. Bc2 {[%clk 0:00:02]}  axb2 {[%clk 0:00:39]} 33. Bxb2 {[%clk 0:00:03]}  Rb8 {[%clk 0:00:38]} 0-1


[Site "https://www.chess.com"]

[Event "Titled Tuesday Blitz April 11 Early 2023"]
[White "Bacrot, Etienne"]
[Black "Karas, Marek"]
[WhiteFideId "605506"]
[BlackFideId "14928558"]
[WhiteElo "2663"]
[BlackElo "2233"]
[Result "1/2-1/2"]
[Round "01"]
[TimeControl "180+2"]
[Date "2023.04.11"]
[WhiteClock "0:00:04"]
[BlackClock "0:00:14"]

1. e4 {[%clk 0:02:58]}  e6 {[%clk 0:02:59]} 2. Nf3 {[%clk 0:02:58]}  d5 {[%clk 0:02:59]} 3. exd5 {[%clk 0:02:59]}  exd5 {[%clk 0:02:59]} 4. d4 {[%clk 0:03:00]}  Nf6 {[%clk 0:02:56]} 5. Bd3 {[%clk 0:02:59]}  c5 {[%clk 0:02:56]} 6. c3 {[%clk 0:02:59]}  c4 {[%clk 0:02:52]} 7. Bc2 {[%clk 0:02:59]}  Bd6 {[%clk 0:02:52]} 8. O-O {[%clk 0:02:59]}  O-O {[%clk 0:02:52]} 9. h3 {[%clk 0:02:59]}  Nc6 {[%clk 0:02:52]} 10. Re1 {[%clk 0:02:58]}  h6 {[%clk 0:02:50]} 11. Nbd2 {[%clk 0:02:58]}  Re8 {[%clk 0:02:47]} 12. Nf1 {[%clk 0:02:54]}  Rxe1 {[%clk 0:02:44]} 13. Qxe1 {[%clk 0:02:54]}  Qe7 {[%clk 0:02:44]} 14. Bd2 {[%clk 0:02:49]}  Qxe1 {[%clk 0:02:39]} 15. Rxe1 {[%clk 0:02:49]}  Be6 {[%clk 0:02:40]} 16. Ng3 {[%clk 0:02:44]}  b5 {[%clk 0:02:34]} 17. Nf5 {[%clk 0:02:41]}  Bf8 {[%clk 0:02:33]} 18. Ne5 {[%clk 0:02:40]}  Rc8 {[%clk 0:02:16]} 19. a4 {[%clk 0:02:27]}  a6 {[%clk 0:02:09]} 20. f3 {[%clk 0:02:08]}  b4 {[%clk 0:01:41]} 21. Nxc6 {[%clk 0:01:49]}  Rxc6 {[%clk 0:01:42]} 22. cxb4 {[%clk 0:01:50]}  Rb6 {[%clk 0:01:37]} 23. Ne3 {[%clk 0:01:08]}  Bxb4 {[%clk 0:01:34]} 24. Bc3 {[%clk 0:01:07]}  Bxc3 {[%clk 0:01:23]} 25. bxc3 {[%clk 0:01:07]}  a5 {[%clk 0:01:18]} 26. Kf2 {[%clk 0:00:44]}  Rb2 {[%clk 0:01:14]} 27. Ke2 {[%clk 0:00:44]}  Bd7 {[%clk 0:01:07]} 28. Ra1 {[%clk 0:00:42]}  Bf5 {[%clk 0:01:02]} 29. Kd2 {[%clk 0:00:41]}  Bxc2 {[%clk 0:01:01]} 30. Nxc2 {[%clk 0:00:41]}  Nh5 {[%clk 0:00:55]} 31. Re1 {[%clk 0:00:32]}  Kf8 {[%clk 0:00:51]} 32. Re5 {[%clk 0:00:28]}  Nf6 {[%clk 0:00:47]} 33. g4 {[%clk 0:00:27]}  g5 {[%clk 0:00:25]} 34. Kc1 {[%clk 0:00:24]}  Rb3 {[%clk 0:00:25]} 35. Re3 {[%clk 0:00:24]}  Nd7 {[%clk 0:00:23]} 36. Na1 {[%clk 0:00:24]}  Rb6 {[%clk 0:00:22]} 37. Nc2 {[%clk 0:00:22]}  Re6 {[%clk 0:00:22]} 38. Kb2 {[%clk 0:00:15]}  Nb6 {[%clk 0:00:20]} 39. Ka3 {[%clk 0:00:15]}  Ke7 {[%clk 0:00:20]} 40. Re1 {[%clk 0:00:12]}  Rxe1 {[%clk 0:00:20]} 41. Nxe1 {[%clk 0:00:12]}  f5 {[%clk 0:00:18]} 42. Ng2 {[%clk 0:00:11]}  f4 {[%clk 0:00:17]} 43. h4 {[%clk 0:00:11]}  Kf6 {[%clk 0:00:17]} 44. h5 {[%clk 0:00:11]}  Ke6 {[%clk 0:00:17]} 45. Ne1 {[%clk 0:00:11]}  Kf6 {[%clk 0:00:17]} 46. Nc2 {[%clk 0:00:11]}  Nc8 {[%clk 0:00:15]} 47. Kb2 {[%clk 0:00:11]}  Ne7 {[%clk 0:00:15]} 48. Kc1 {[%clk 0:00:09]}  Ke6 {[%clk 0:00:15]} 49. Na3 {[%clk 0:00:05]}  Nc8 {[%clk 0:00:15]} 50. Nb5 {[%clk 0:00:04]}  Kd7 {[%clk 0:00:12]} 51. Kb2 {[%clk 0:00:03]}  Nd6 {[%clk 0:00:11]} 52. Na3 {[%clk 0:00:01]}  Kc6 {[%clk 0:00:11]} 53. Nc2 {[%clk 0:00:01]}  Nc8 {[%clk 0:00:11]} 54. Ne1 {[%clk 0:00:01]}  Nb6 {[%clk 0:00:11]} 55. Ka3 {[%clk 0:00:02]}  Nc8 {[%clk 0:00:12]} 56. Nc2 {[%clk 0:00:03]}  Nd6 {[%clk 0:00:12]} 57. Kb2 {[%clk 0:00:03]}  Nb7 {[%clk 0:00:12]} 58. Ne1 {[%clk 0:00:03]}  Nd6 {[%clk 0:00:12]} 59. Ka3 {[%clk 0:00:03]}  Kd7 {[%clk 0:00:13]} 60. Kb2 {[%clk 0:00:03]}  Kc6 {[%clk 0:00:13]} 61. Ka3 {[%clk 0:00:04]}  Kd7 {[%clk 0:00:14]} 62. Kb2 {[%clk 0:00:04]}  Kc6 {[%clk 0:00:14]} 1/2-1/2


[Site "https://www.chess.com"]

[Event "Titled Tuesday Blitz April 11 Early 2023"]
[White "Leenhouts, Koen"]
[Black "Anton Guijarro, David"]
[WhiteFideId "1008439"]
[BlackFideId "2285525"]
[WhiteElo "2409"]
[BlackElo "2618"]
[Result "0-1"]
[Round "01"]
[TimeControl "180+2"]
[Date "2023.04.11"]
[WhiteClock "0:00:21"]
[BlackClock "0:00:29"]

1. d4 {[%clk 0:03:00]}  Nf6 {[%clk 0:02:59]} 2. c4 {[%clk 0:02:59]}  e6 {[%clk 0:02:59]} 3. g3 {[%clk 0:02:58]}  d5 {[%clk 0:02:55]} 4. Nf3 {[%clk 0:02:58]}  Bb4+ {[%clk 0:02:54]} 5. Bd2 {[%clk 0:02:56]}  Be7 {[%clk 0:02:54]} 6. Bg2 {[%clk 0:02:56]}  O-O {[%clk 0:02:54]} 7. O-O {[%clk 0:02:55]}  Nbd7 {[%clk 0:02:54]} 8. Qc2 {[%clk 0:02:54]}  c6 {[%clk 0:02:53]} 9. Bf4 {[%clk 0:02:44]}  a5 {[%clk 0:02:52]} 10. Nbd2 {[%clk 0:02:42]}  Nh5 {[%clk 0:02:43]} 11. Rad1 {[%clk 0:02:35]}  Nxf4 {[%clk 0:02:39]} 12. gxf4 {[%clk 0:02:36]}  a4 {[%clk 0:02:37]} 13. e3 {[%clk 0:02:35]}  a3 {[%clk 0:02:23]} 14. b3 {[%clk 0:02:30]}  Qa5 {[%clk 0:02:23]} 15. Kh1 {[%clk 0:02:28]}  g6 {[%clk 0:02:22]} 16. Rg1 {[%clk 0:02:26]}  b6 {[%clk 0:02:18]} 17. Bf1 {[%clk 0:02:17]}  Bb7 {[%clk 0:02:04]} 18. Bd3 {[%clk 0:02:03]}  dxc4 {[%clk 0:01:46]} 19. Nxc4 {[%clk 0:01:58]}  Qh5 {[%clk 0:01:45]} 20. Rg3 {[%clk 0:01:45]}  c5 {[%clk 0:01:23]} 21. Be4 {[%clk 0:01:44]}  Bxe4 {[%clk 0:01:21]} 22. Qxe4 {[%clk 0:01:45]}  Rad8 {[%clk 0:01:17]} 23. Rdg1 {[%clk 0:01:41]}  Bf6 {[%clk 0:01:04]} 24. Ng5 {[%clk 0:01:12]}  Bxg5 {[%clk 0:00:50]} 25. Rxg5 {[%clk 0:01:11]}  Qh6 {[%clk 0:00:36]} 26. dxc5 {[%clk 0:00:58]}  Nxc5 {[%clk 0:00:35]} 27. Qe5 {[%clk 0:00:48]}  Nd3 {[%clk 0:00:33]} 28. Qc7 {[%clk 0:00:20]}  Nxf2+ {[%clk 0:00:30]} 29. Kg2 {[%clk 0:00:21]}  Nh3 {[%clk 0:00:29]} 0-1


[Site "https://www.chess.com"]

[Event "Titled Tuesday Blitz April 11 Early 2023"]
[White "Keymer, Vincent"]
[Black "Yurasova, Daria"]
[WhiteFideId "12940690"]
[BlackFideId "34146919"]
[WhiteElo "2651"]
[BlackElo "2134"]
[Result "1/2-1/2"]
[Round "01"]
[TimeControl "180+2"]
[Date "2023.04.11"]
[WhiteClock "0:00:01"]
[BlackClock "0:00:07"]

1. a3 {[%clk 0:03:00]}  b6 {[%clk 0:02:56]} 2. e4 {[%clk 0:02:57]}  Bb7 {[%clk 0:02:57]} 3. Nc3 {[%clk 0:02:56]}  c5 {[%clk 0:02:57]} 4. Nf3 {[%clk 0:02:54]}  e6 {[%clk 0:02:57]} 5. d4 {[%clk 0:02:53]}  cxd4 {[%clk 0:02:55]} 6. Nxd4 {[%clk 0:02:54]}  d6 {[%clk 0:02:56]} 7. Be2 {[%clk 0:02:37]}  Be7 {[%clk 0:02:56]} 8. O-O {[%clk 0:02:32]}  Nf6 {[%clk 0:02:56]} 9. Bb5+ {[%clk 0:02:26]}  Nfd7 {[%clk 0:02:25]} 10. Qg4 {[%clk 0:02:11]}  Bf6 {[%clk 0:02:23]} 11. Be3 {[%clk 0:02:06]}  O-O {[%clk 0:02:20]} 12. Rad1 {[%clk 0:02:02]}  a6 {[%clk 0:02:19]} 13. Be2 {[%clk 0:02:00]}  Ne5 {[%clk 0:02:09]} 14. Qg3 {[%clk 0:01:58]}  Nbc6 {[%clk 0:02:06]} 15. f4 {[%clk 0:01:53]}  Ng6 {[%clk 0:01:43]} 16. Nxc6 {[%clk 0:01:14]}  Bxc6 {[%clk 0:01:43]} 17. e5 {[%clk 0:01:14]}  Be7 {[%clk 0:01:09]} 18. Qf2 {[%clk 0:00:37]}  Qb8 {[%clk 0:00:54]} 19. exd6 {[%clk 0:00:26]}  Bxd6 {[%clk 0:00:54]} 20. g3 {[%clk 0:00:27]}  Bc7 {[%clk 0:00:47]} 21. Rd2 {[%clk 0:00:23]}  Ne7 {[%clk 0:00:46]} 22. Bf3 {[%clk 0:00:21]}  Bxf3 {[%clk 0:00:35]} 23. Qxf3 {[%clk 0:00:22]}  Nf5 {[%clk 0:00:36]} 24. Bf2 {[%clk 0:00:22]}  b5 {[%clk 0:00:34]} 25. Ne4 {[%clk 0:00:20]}  Bb6 {[%clk 0:00:33]} 26. Rfd1 {[%clk 0:00:19]}  Bxf2+ {[%clk 0:00:33]} 27. Qxf2 {[%clk 0:00:19]}  Qb7 {[%clk 0:00:32]} 28. Nc5 {[%clk 0:00:17]}  Qc6 {[%clk 0:00:27]} 29. g4 {[%clk 0:00:17]}  Ne7 {[%clk 0:00:25]} 30. Rd6 {[%clk 0:00:17]}  Qc8 {[%clk 0:00:22]} 31. Nd7 {[%clk 0:00:17]}  Re8 {[%clk 0:00:12]} 32. Nb6 {[%clk 0:00:18]}  Qb7 {[%clk 0:00:10]} 33. Nxa8 {[%clk 0:00:18]}  Qxa8 {[%clk 0:00:11]} 34. Qg2 {[%clk 0:00:13]}  Nd5 {[%clk 0:00:11]} 35. R6xd5 {[%clk 0:00:09]}  exd5 {[%clk 0:00:11]} 36. Qxd5 {[%clk 0:00:10]}  Qc8 {[%clk 0:00:10]} 37. Qd7 {[%clk 0:00:08]}  Qc5+ {[%clk 0:00:10]} 38. Kf1 {[%clk 0:00:05]}  Rf8 {[%clk 0:00:10]} 39. Rd2 {[%clk 0:00:05]}  Qc4+ {[%clk 0:00:11]} 40. Kg2 {[%clk 0:00:04]}  Qxf4 {[%clk 0:00:11]} 41. Qd4 {[%clk 0:00:04]}  Qc7 {[%clk 0:00:10]} 42. h3 {[%clk 0:00:04]}  h6 {[%clk 0:00:10]} 43. c3 {[%clk 0:00:04]}  Qc6+ {[%clk 0:00:11]} 44. Qd5 {[%clk 0:00:04]}  Qf6 {[%clk 0:00:10]} 45. Rf2 {[%clk 0:00:04]}  Qg6 {[%clk 0:00:09]} 46. Qf5 {[%clk 0:00:03]}  Qc6+ {[%clk 0:00:09]} 47. Qf3 {[%clk 0:00:02]}  Qc7 {[%clk 0:00:09]} 48. Re2 {[%clk 0:00:02]}  Rd8 {[%clk 0:00:09]} 49. Qe4 {[%clk 0:00:03]}  Qd6 {[%clk 0:00:08]} 50. a4 {[%clk 0:00:03]}  bxa4 {[%clk 0:00:08]} 51. Qxa4 {[%clk 0:00:04]}  Qd5+ {[%clk 0:00:09]} 52. Qe4 {[%clk 0:00:04]}  Qd6 {[%clk 0:00:09]} 53. Qe3 {[%clk 0:00:03]}  Rb8 {[%clk 0:00:09]} 54. Qf3 {[%clk 0:00:03]}  a5 {[%clk 0:00:09]} 55. Rf2 {[%clk 0:00:04]}  Qd7 {[%clk 0:00:08]} 56. Qf5 {[%clk 0:00:04]}  Qb7+ {[%clk 0:00:08]} 57. Kh2 {[%clk 0:00:04]}  Qc7+ {[%clk 0:00:08]} 58. Kg2 {[%clk 0:00:05]}  a4 {[%clk 0:00:07]} 59. Qe4 {[%clk 0:00:04]}  a3 {[%clk 0:00:07]} 60. bxa3 {[%clk 0:00:03]}  Qxc3 {[%clk 0:00:07]} 61. Qd5 {[%clk 0:00:03]}  Qc7 {[%clk 0:00:07]} 62. a4 {[%clk 0:00:03]}  Rd8 {[%clk 0:00:07]} 63. Qf3 {[%clk 0:00:02]}  Qa7 {[%clk 0:00:06]} 64. a5 {[%clk 0:00:02]}  Rd6 {[%clk 0:00:06]} 65. Ra2 {[%clk 0:00:02]}  Rf6 {[%clk 0:00:07]} 66. Qc3 {[%clk 0:00:01]}  Qb7+ {[%clk 0:00:07]} 67. Kg3 {[%clk 0:00:02]}  Qb8+ {[%clk 0:00:07]} 68. Kg2 {[%clk 0:00:02]}  Qb7+ {[%clk 0:00:07]} 69. Kg1 {[%clk 0:00:02]}  Qa7+ {[%clk 0:00:07]} 70. Kg2 {[%clk 0:00:01]}  Qb7+ {[%clk 0:00:07]} 1/2-1/2


[Site "https://www.chess.com"]